Cogmind - Beta 13 @@@ ROGUE MODE // 2024.04.06 @ 02:45:56 Player: kirkalish Result: Destroyed by G-34 Mercenary with Small Laser Performance ------------- Evolutions (1) 500 Regions Visited (2) 400 Robots Destroyed (65) 325 Value Destroyed (1229) 1229 Prototype IDs (6) 120 Alien Tech Used (0) 0 Bonus (0) 0 TOTAL SCORE: 2574 Bonus ------- None Cogmind --------- Core Integrity 0/400 Matter 230/300 Energy 100/100 System Corruption 0% Temperature Cool (6) Movement Core (1350) Ox26 Location -9/Materials Parts ------- > --- POWER (2) -------- (None) > --- PROPULSION (2) --- (None) > --- UTILITY (3) ------ Huge Storage Unit Visual Processing Unit > --- WEAPON (2) ------- (None) > --- INVENTORY (25) --- Heat Sink Cooling System Structural Scanner Visual Processing Unit Sensor Array Terrain Scanner Power Shielding Utility Shielding Medium Armor Plating Particle Gun Welding Torch Peak State ------------ > --- POWER ------------ Ion Engine Light Ion Engine > --- PROPULSION ------- Light Treads Light Treads > --- UTILITY ---------- Huge Storage Unit Visual Processing Unit Terrain Scan Processor > --- WEAPON ----------- EM Shotgun Beam Rifle > --- INVENTORY -------- Improved Treads Heat Sink High-capacity Battery Structural Scanner Visual Processing Unit Terrain Scanner Power Shielding Utility Shielding Medium Armor Plating Datajack [Rating: 14] Favorites ----------- Power Light Ion Engine Engine Light Ion Engine Propulsion Improved Treads Treads Improved Treads Utility Visual Processing Unit Storage Huge Storage Unit Processor Visual Processing Unit Protection Medium Armor Plating Weapon Beam Rifle Energy Gun Beam Rifle Ballistic Gun Light Assault Rifle Launcher EMP Blaster Special Melee Weapon Datajack Build | -11 -10 -9 ------- Run | Yrd Mat Mat Slots Evolved 2 | . . 2 Power 1 | . . 1 Propulsion . | . . . Utility 1 | . . 1 Weapon . | . . . Parts Attached 47 | 6 17 24 Power 8 | 1 1 6 Engine 8 | 1 1 6 Core . | . . . Reactor . | . . . Propulsion 7 | 2 4 1 Treads 7 | 2 4 1 Leg . | . . . Wheel . | . . . Hover . | . . . Flight . | . . . Utility 7 | 1 4 2 Device . | . . . Storage 4 | 1 2 1 Processor 2 | . 1 1 Hackware . | . . . Protection 1 | . 1 . Artifact . | . . . Weapon 25 | 2 8 15 Energy Gun 14 | 2 5 7 Energy Cannon . | . . . Ballistic Gun 2 | . . 2 Ballistic Cannon . | . . . Launcher 6 | . 1 5 Special Weapon . | . . . Impact Weapon . | . . . Slashing Weapon . | . . . Piercing Weapon . | . . . Special Melee Weapon 3 | . 2 1 Unidentified Prototypes . | . . . Parts Lost 21 | . 4 17 Power 6 | . 1 5 Propulsion 4 | . 1 3 Utility 1 | . . 1 Weapon 10 | . 2 8 Highest Loss Streak 5 | . 3 5 To Critical Strikes . | . . . Average Slot Usage (%) 92 | . 98 86 Engine 14 | . 13 16 Treads 21 | . 27 16 Storage 13 | . 14 12 Processor 15 | . 9 20 Protection 1 | . 4 . Energy Gun 15 | . 22 8 Ballistic Gun 1 | . . 3 Launcher 3 | . 2 4 Special Melee Weapon 3 | . 2 4 Naked Turns . | . . . Heaviest Build 98 | 12 91 98 Greatest Support 46 | 40 46 40 Greatest Overweight (x) 32 | 1 2 32 Average Overweight (x) 1 | . . 3 Largest Inventory Capacity 25 | 8 25 25 Average Capacity 22 | 7 20 25 Most Carried 15 | 7 15 14 Average Carried 10 | 2 10 10 Final Capacity 25 | 8 25 25 Final Carried 11 | 2 10 11 Class Distribution -------------------- 76% | Mutant 23% | Scavenger-Mutant Dominant Class ---------------- Mutant | -10/Materials Mutant | -9/Materials Resources | -11 -10 -9 ----------- Run | Yrd Mat Mat Matter Collected 735 | 193 219 323 Remotely . | . . . Salvage Created 1936 | . 670 1266 Parts 134 | . 52 82 Haulers Intercepted . | . . . Recyclers Shooed 1 | . . 1 Parts Field Recycled . | . . . Retrieved Matter . | . . . Parts Self-Destructed . | . . . Prevented . | . . . Kills | -11 -10 -9 ------- Run | Yrd Mat Mat Combat Hostiles Destroyed 38 | . 14 24 Guns 23 | . 11 12 AOE 15 | . 3 12 Classes Destroyed 8 | . 7 1 Worker 7 | . 3 4 Builder 8 | . 4 4 Recycler 5 | . 1 4 Operator 1 | . 1 . Watcher 6 | . 3 3 Swarmer 15 | . 3 12 Grunt 21 | . 11 10 Sentry 2 | . . 2 Best Kill Streak 10 | . 4 10 Combat Bots Only 7 | . 3 7 Max Kills in Single Turn 3 | . 1 3 Gunslinging . | . . . Exploded 2 | . 1 2 Melee . | . . . Uniques/NPCs Destroyed . | . . . Combat | -11 -10 -9 -------- Run | Yrd Mat Mat Hostile Shots Fired 277 | . 92 185 Missed 67 | . 20 47 Damage Taken 2351 | . 828 1523 Core 536 | . 129 407 Absorbed by Shields . | . . . Core Remaining (%) 74 | 100 48 . Volleys Fired 164 | 1 59 104 Largest 2 | 2 2 2 Hottest 112 | 90 112 85 Shots Fired 227 | 2 103 122 Gun 197 | 2 97 98 Cannon . | . . . Launcher 30 | . 6 24 Special . | . . . Kinetic 40 | . . 40 Thermal 140 | 1 90 49 Explosive 7 | . 6 1 Electromagnetic 40 | 1 7 32 Robot Hit Streak 8 | . 7 8 Robot Miss Streak 5 | . 4 5 Penetration Max . | . . . Secondary Targets 1 | . 1 . Max Gunslinging Chain 1 | . 1 . Shots Hit Robots 120 | . 57 63 Core Hits 95 | . 33 62 Critical Kills . | . . . Critical Parts Destroyed 1 | . . 1 Critical Strikes 7 | . 3 4 Burn 6 | . 3 3 Destroy 1 | . . 1 Melee Attacks 3 | . . 3 Impact . | . . . Slashing . | . . . Piercing . | . . . Sneak Attacks 3 | . . 3 Combat Hostiles . | . . . Follow-up Attacks . | . . . Damage Inflicted 2964 | . 1075 1889 Guns 1607 | . 852 755 Cannons . | . . . Explosions 1355 | . 223 1132 Melee . | . . . Ramming 2 | . . 2 Kinetic 225 | . . 225 Thermal 1404 | . 803 601 Explosive 223 | . 223 . Electromagnetic 1110 | . 49 1061 Impact . | . . . Slashing . | . . . Piercing . | . . . Highest Corruption . | . . . Average Corruption . | . . . Corruption Purged . | . . . Corruption Blocked . | . . . Overload Shots . | . . . Overflow Damage 4 | . 3 1 Projectiles . | . . . Explosions 4 | . 3 1 Melee . | . . . Knockbacks . | . . . Impact . | . . . Kinetic . | . . . Secondary . | . . . Self-Inflicted Damage 121 | . 41 80 Shots 7 | . 2 5 Rammed 1 | . . 1 Targets Rammed 1 | . . 1 Kicked . | . . . Crushed . | . . . Highest Temperature 340 | 30 340 212 Average Temperature 88 | 18 110 56 Received Heat Transfer 1029 | . 396 633 Effects 5 | . 2 3 Energy Bleed 2 | . 2 . Interference 3 | . . 3 Siege Activations . | . . . Robots Corrupted . | . . . Combat Hostiles . | . . . Parts Fried . | . . . Impact Corruptions . | . . . Robots Melted . | . . . Combat Hostiles . | . . . Parts Melted 1 | . 1 . Heat Transferred 3926 | . 2257 1669 Parts Sabotaged . | . . . Parts Stolen . | . . . Parts Stripped . | . . . Power Chain Reactions 8 | . . 8 Alert | -11 -10 -9 ------- Run | Yrd Mat Mat Peak Influence 371 | . 209 371 Initial 40 | . . 40 Average 123 | . 76 174 Maximum Alert Level 1 | . 1 1 Low Security (%) 78 | 100 95 61 Level 1 21 | . 4 38 Level 2 . | . . . Level 3 . | . . . Level 4 . | . . . Level 5 . | . . . High Security . | . . . Max Security . | . . . Squads Dispatched 10 | . 5 5 Investigation 6 | . 5 1 Extermination . | . . . Reinforcement 4 | . . 4 Assault . | . . . Garrison . | . . . Intercept . | . . . Searches Triggered . | . . . Construction Impeded . | . . . Haulers Reinforced . | . . . Active Scanning Responses . | . . . Cargo Convoy Interrupts . | . . . Stealth | -11 -10 -9 --------- Run | Yrd Mat Mat Distress Signals 9 | . 1 8 Communications Jammed . | . . . Distress Signals . | . . . Times Spotted 59 | . 21 38 Peak Tracking Total 8 | . 4 8 Tactical Retreats 2 | . . 2 Traps | -11 -10 -9 ------- Run | Yrd Mat Mat Traps Triggered 1 | . 1 . Indirectly . | . . . Trap Hack Attempts . | . . . Triggered . | . . . Disarmed . | . . . Reprogrammed . | . . . Reused . | . . . Traps Extracted . | . . . Installed . | . . . Triggered . | . . . Machines | -11 -10 -9 ---------- Run | Yrd Mat Mat Machines Disabled 7 | . 1 6 Max in Single Turn 2 | . 1 2 Machines Repaired . | . . . Machines Dismantled . | . . . Machines Sabotaged . | . . . Overloaded Fab Kills . | . . . Hacking | -11 -10 -9 --------- Run | Yrd Mat Mat Machines Accessed 8 | . 5 3 Terminals 7 | . 4 3 Fabricators . | . . . Repair Stations . | . . . Recycling Units 1 | . 1 . Scanalyzers . | . . . Garrison Access . | . . . Total Hacks 30 | . 18 12 Successful 14 | . 11 3 Failed 16 | . 7 9 Catastrophic 3 | . 2 1 Database Lockouts . | . . . Manual . | . . . Terminals 26 | . 14 12 Fabricators . | . . . Repair Stations . | . . . Recycling Units 4 | . 4 . Scanalyzers . | . . . Garrison Access . | . . . Terminal Hacks 10 | . 7 3 Record 2 | . 1 1 Robot Analysis 1 | . 1 . Prototype ID Bank 4 | . 3 1 Emergency Access Points 1 | . 1 . Dispatch Records 1 | . 1 . Zone Layout 1 | . . 1 Fabricator Hacks . | . . . Repair Station Hacks . | . . . Recycling Unit Hacks 4 | . 4 . Recycle Component 3 | . 3 . Retrieve Components 1 | . 1 . Scanalyzer . | . . . Garrison Access Hacks . | . . . Unauthorized Hacks . | . . . Terminals . | . . . Fabricators . | . . . Repair Stations . | . . . Recycling Units . | . . . Scanalyzers . | . . . Garrison Access . | . . . Data Cores Recovered 1 | . 1 . Used . | . . . Hacking Detections 8 | . 5 3 Full Trace Events 7 | . 5 2 Feedback Events . | . . . Feedback Blocked . | . . . Robot Schematics Acquired . | . . . Robots Built . | . . . Authchips . | . . . Time . | . . . Total Robot Build Rating . | . . . Part Schematics Acquired . | . . . Parts Built . | . . . Authchips . | . . . Time . | . . . Total Part Build Rating . | . . . Parts Repaired . | . . . Time . | . . . Parts Recycled 3 | . 3 . Recycled Matter . | . . . Retrieved Matter . | . . . Retrieved Components 6 | . 6 . Parts Scanalyzed . | . . . Part Schematics Acquired . | . . . Parts Damaged . | . . . Bothacking | -11 -10 -9 ------------ Run | Yrd Mat Mat Used RIF Installer . | . . . Robots Hacked 1 | . . 1 Non-combat 1 | . . 1 Combat . | . . . Robot Hacks Applied 2 | . . 2 parse_system 1 | . . 1 no_distress 1 | . . 1 Relay Couplers Released . | . . . Fabnet Peak Effective % . | . . . Robots Rewired . | . . . Allies Hacked . | . . . Hacks Repelled . | . . . Allies | -11 -10 -9 -------- Run | Yrd Mat Mat Total Allies . | . . . Largest Group . | . . . Highest-Rated Group . | . . . Highest-Rated Ally . | . . . Total Orders . | . . . Ally Attacks . | . . . Total Damage . | . . . Kills . | . . . Allies Corrupted . | . . . Allies Melted . | . . . Intel | -11 -10 -9 ------- Run | Yrd Mat Mat Robot Analysis Total 1 | . 1 . Derelict Logs Recovered . | . . . Drone Launches . | . . . Drone Recoveries . | . . . Exploration | -11 -10 -9 ------------- Run | Yrd Mat Mat Turns Passed 2614 | 69 1249 1296 Spaces Moved 773 | 53 451 269 Core 39 | 30 . 9 Treads 734 | 23 451 260 Legs . | . . . Wheels . | . . . Hover . | . . . Flight . | . . . Fastest Speed 50 | 50 160 320 Average Speed 264 | 101 214 379 Slowest Speed 1650 | 160 320 1650 Overloaded Moves . | . . . Propulsion Burnouts . | . . . Robots Hopped . | . . . Cave-ins Triggered . | . . . Exploration Rate (%) 34 | 3 70 31 Regions Visited 2 Branch Regions . Pre-discovered Areas . | . . . Known Exits Taken . | . . . Unknown Exits Taken 2 | 1 1 . Scrap Searched . | . . . Spaces Dug . | . . . Terrain Destroyed 59 | . 36 23 Melee . | . . . Projectile . | . . . AOE 59 | . 36 23 Terrain Rammed . | . . . Walls Destroyed . | . . . Machines Disabled . | . . . Actions | -11 -10 -9 --------- Run | Yrd Mat Mat Total 1131 | 66 633 432 Wait 84 | . 78 6 Move 771 | 52 450 269 Hop . | . . . Pick Up 46 | 7 21 18 Fast Attach 1 | 1 . . Attach 27 | 5 8 14 Detach 5 | . 3 2 Swap 19 | . 9 10 Drop 10 | . 5 5 Fire 164 | 1 59 104 Melee 3 | . . 3 Ram . | . . . Kick . | . . . Crush 1 | . . 1 Escape Stasis . | . . . Rewire . | . . . Trap . | . . . Miscellaneous . | . . . Route ------- -11/Scrapyard -10/Materials (discovered 2 exits: *Mat x2) -9/Materials (discovered 1 exit: [*Min]) History --------- Turn | Location | Event 8 | -11/Scrapyard | Discovered new exit (range 16) 70 | -11/Scrapyard | Entered Materials 300 | -10/Materials | Build established: Mutant 548 | -10/Materials | Discovered new exit (range 17) 1052 | -10/Materials | Discovered new exit (range 13) 1169 | -10/Materials | Lost 3 parts (1n2w) 1217 | -10/Materials | Core integrity fell below 50% 1319 | -10/Materials | Entered another Materials area 1319 | -9/Materials | Evolved 2 slots: Power x1, Utility x1 2143 | -9/Materials | Discovered new exit (range 12) 2148 | -9/Materials | Build established: Scavenger-Mutant 2256 | -9/Materials | Core integrity fell below 50% 2315 | -9/Materials | Lost 3 parts (1p2w) 2555 | -9/Materials | Core integrity fell below 20% 2602 | -9/Materials | Destroyed 7 combat bots 2615 | -9/Materials | Destroyed by G-34 Mercenary with Small Laser Last Messages --------------- 02581_ R-06 Scavenger collects Corrupted Hover Unit. 02582_ U-05 Engineer lays Concrete. 02583_ U-05 Engineer builds a Wall. 02584_ U-05 Engineer repairs door. 02584_ U-05 Engineer builds a Wall. 02586_ U-05 Engineer builds a Door. 02588_ U-05 Engineer lays Concrete. 02591_ U-05 Engineer builds a Wall. 02592_ U-05 Engineer lays Concrete. 02592_ R-06 Scavenger collects Corrupted Hover Unit. 02593_ U-05 Engineer lays Concrete. 02602_ U-05 Engineer builds a Door. 02602_ EMP Blaster destroyed. 02604_ K-01 Serf collects debris. 02605_ R-06 Scavenger collects Aluminum Leg. 02606_ Terrain Scan Processor destroyed. 02608_ Beam Rifle destroyed. 02610_ U-05 Engineer lays Concrete. Map ----- +----------------------------------------------------+ | ?????????????????????????????????????????????????? | | ?????????????????????????????????????????????????? | | ?????????????????????????????????????????????????? | | ?????????????????????????????????????????????????? | | ?????????????????????????????????????????????????? | | ?????????????????????????????????????????????????? | | ???????????????????????? ????????????????????????? | | ??????????????????????? ????????????????????????? | | ??????????????????????? ????????????????????????? | | ??????????????????????? ????????????????????????? | | ??????????????????????? ????????????????????????? | | ??????????????????????? ????????????????????????? | | ???????????????????????# ????????????????????????? | | ???????????????????????# ????#+#?????????????????? | | ???????????????????????# #???# #?#???????????????? | | ???????????????????????# #???# # ???????????????? | | ?????????????????#######g##### # ????????????????? | | ?????????????????# ta/?????????????????? | | ?????????????????# k#?????????????????? | | ?????????????????# """ ####??????????????? | | ?????????????????# "T" g""" ??????????#+##+# | | ?????????????????# """ ########????# | | ???????????# #####/ """ ## *# # | | ??????? + k% ## " # + | | ???????????# [% = ## """ # ###### | | ??????? # @ / "" #?????????? | | ???????? /uu u ! ## """ #?????????? | | ???????? #/############## % ## "" #?????????? | | ??????????????????????????# ## """ ########?## | | ??????????????????????????# + """ ## # | | ??????????????????????????######## "" ## """ # | | ?????????????????????????????????# " ## """"" # | | ?????????????????????????????????# ## """"" # | | ?????????????????????????#########= =! ## """"" # | | ?????????????????????##+## %=##/##### """ # | | ????????????????????# % % [= %* ### # | | ????????????????????# % <= %%!% += # | | ????????????????????# =%%= =### # | | ????????????????????# ## ! ## #?#####+#### | | ????????????????????????## ! ! ?# =*#????# ### | | ????????????????????????## ??# ###### # | | ?????????????????????????#######??# !% + | | ??????????????????????????????????# = # | | ??????????????????????????????????# % ### | | ??????????????????????????????????# """%== % | | ??????????????????????????????????# ""%% !%% | | ??????????????????????????????????# ""%" == | | ??????????????????????????????????# | | ??????????????????????????????????# | | ??????????????????????????????????# ######+#### | +----------------------------------------------------+ Best States ------------- Heat Dissipation 28 Energy Generation 15 Energy Capacity 525 Matter Stores 300 Matter Capacity 300 Sight Range 18 Terrain Scan Density 85 Armor Coverage 225 Evasion (%) 50 Recoil Reduction 2 Item Schematics ----------------- None Robot Schematics ------------------ None Fabricated ------------ Nothing Alien Tech Used ----------------- None Achievements -------------- None Challenges ------------ None Game ------ Seed LongswordFrostReconstructor Manual? 0 Play Time 00:40:21 Cumulative 3.9 hours Start 2024.04.05 @ 06:06:05 End 2024.04.06 @ 02:45:56 Sessions 2 Manual Loads 0 Difficulty Rogue Special Mode None Game No. 7 Rogue 7 Adventurer 0 Explorer 0 Win Type - Total 0 Types 0/0/0/0/0/0/0/0/0 Lore% 2 Gallery% 6 Achievement% 6 Wizard Run 0 Options --------- Layout 2 ASCII 0 Keyboard 0 Movement Mouse Keybinds 0 Fullscreen 1 Font 32/SmallcapsGlow Map View 50x44 Zoom Use 0% Tactical HUD 1 Map Filters NONE Filters NONE Steam 1 RUN: 437453f4-34d4-41eb-b1c3-5583e337ad58